[Event "Titled Tuesday Blitz April 26 Early 2022"]
[White "Nazari, Arad"]
[Black "Skliarov, Viktor"]
[WhiteFideId "12577324"]
[BlackFideId "14106736"]
[WhiteElo "2129"]
[BlackElo "2229"]
[Result "0-1"]
[Round "03"]
[TimeControl "180+1"]
[Date "2022.04.26"]
[WhiteClock "0:00:04"]
[BlackClock "0:00:05"]

1. e4 {[%clk 0:03:00]}  c5 {[%clk 0:02:59]} 2. Nf3 {[%clk 0:03:01]}  Nc6 {[%clk 0:03:00]} 3. Bb5 {[%clk 0:03:01]}  e6 {[%clk 0:03:00]} 4. O-O {[%clk 0:03:01]}  Nge7 {[%clk 0:03:00]} 5. c3 {[%clk 0:03:02]}  a6 {[%clk 0:03:00]} 6. Bxc6 {[%clk 0:03:02]}  Nxc6 {[%clk 0:02:58]} 7. d4 {[%clk 0:03:03]}  cxd4 {[%clk 0:02:57]} 8. cxd4 {[%clk 0:03:04]}  d5 {[%clk 0:02:58]} 9. exd5 {[%clk 0:03:04]}  exd5 {[%clk 0:02:58]} 10. Bg5 {[%clk 0:03:02]}  Be7 {[%clk 0:02:54]} 11. Bxe7 {[%clk 0:03:01]}  Nxe7 {[%clk 0:02:54]} 12. Re1 {[%clk 0:02:59]}  O-O {[%clk 0:02:54]} 13. Nc3 {[%clk 0:02:59]}  h6 {[%clk 0:02:50]} 14. Qb3 {[%clk 0:02:59]}  b5 {[%clk 0:02:41]} 15. Re5 {[%clk 0:02:49]}  Be6 {[%clk 0:02:36]} 16. Rae1 {[%clk 0:02:44]}  Qd6 {[%clk 0:01:50]} 17. h3 {[%clk 0:02:29]}  Rac8 {[%clk 0:01:43]} 18. Ne2 {[%clk 0:02:22]}  Ng6 {[%clk 0:01:22]} 19. Re3 {[%clk 0:02:21]}  Nf4 {[%clk 0:01:11]} 20. Ne5 {[%clk 0:02:14]}  Nxe2+ {[%clk 0:01:09]} 21. R3xe2 {[%clk 0:02:14]}  Rc7 {[%clk 0:01:02]} 22. Qg3 {[%clk 0:02:05]}  Rfc8 {[%clk 0:00:47]} 23. b3 {[%clk 0:02:01]}  Rc3 {[%clk 0:00:35]} 24. Qh4 {[%clk 0:01:43]}  Rc1 {[%clk 0:00:33]} 25. f4 {[%clk 0:01:34]}  Rxe1+ {[%clk 0:00:31]} 26. Qxe1 {[%clk 0:01:34]}  Bf5 {[%clk 0:00:29]} 27. Re3 {[%clk 0:01:06]}  b4 {[%clk 0:00:24]} 28. Qh4 {[%clk 0:00:57]}  a5 {[%clk 0:00:20]} 29. Rg3 {[%clk 0:00:55]}  Rc2 {[%clk 0:00:17]} 30. Ng4 {[%clk 0:00:47]}  Bxg4 {[%clk 0:00:14]} 31. Qxg4 {[%clk 0:00:48]}  Qf6 {[%clk 0:00:13]} 32. Kh2 {[%clk 0:00:26]}  Rxa2 {[%clk 0:00:12]} 33. Qc8+ {[%clk 0:00:25]}  Kh7 {[%clk 0:00:12]} 34. Qc5 {[%clk 0:00:26]}  Qxf4 {[%clk 0:00:08]} 35. Qxd5 {[%clk 0:00:26]}  g6 {[%clk 0:00:05]} 36. Qc4 {[%clk 0:00:20]}  h5 {[%clk 0:00:05]} 37. d5 {[%clk 0:00:19]}  Qe5 {[%clk 0:00:04]} 38. d6 {[%clk 0:00:17]}  Qxd6 {[%clk 0:00:03]} 39. Qxf7+ {[%clk 0:00:18]}  Kh6 {[%clk 0:00:03]} 40. Qg8 {[%clk 0:00:17]}  Qf6 {[%clk 0:00:03]} 41. Qb8 {[%clk 0:00:14]}  h4 {[%clk 0:00:04]} 42. Rg4 {[%clk 0:00:12]}  Rf2 {[%clk 0:00:04]} 43. Qc7 {[%clk 0:00:06]}  Rf5 {[%clk 0:00:04]} 44. Qc1+ {[%clk 0:00:06]}  g5 {[%clk 0:00:04]} 45. Rxh4+ {[%clk 0:00:06]}  Kg6 {[%clk 0:00:04]} 46. Rg4 {[%clk 0:00:07]}  Qd6+ {[%clk 0:00:04]} 47. Kh1 {[%clk 0:00:04]}  Rd5 {[%clk 0:00:05]} 48. Qc2+ {[%clk 0:00:04]}  Kh6 {[%clk 0:00:05]} 49. Qc8 {[%clk 0:00:04]}  Rd1# {[%clk 0:00:05]} 0-1


[Site "https://www.chess.com"]

[Event "Titled Tuesday Blitz April 26 Early 2022"]
[White "Nguyen, Hong Anh"]
[Black "Cramling Bellon, Anna"]
[WhiteFideId "12406732"]
[BlackFideId "32009232"]
[WhiteElo "2016"]
[BlackElo "1905"]
[Result "1-0"]
[Round "03"]
[TimeControl "180+1"]
[Date "2022.04.26"]
[WhiteClock "0:00:46"]
[BlackClock "0:00:09"]

1. d4 {[%clk 0:03:00]}  Nf6 {[%clk 0:02:57]} 2. Nf3 {[%clk 0:03:00]}  d5 {[%clk 0:02:57]} 3. g3 {[%clk 0:03:01]}  c5 {[%clk 0:02:47]} 4. Bg2 {[%clk 0:03:00]}  Nc6 {[%clk 0:02:47]} 5. O-O {[%clk 0:02:59]}  cxd4 {[%clk 0:02:40]} 6. Nxd4 {[%clk 0:02:59]}  e5 {[%clk 0:02:40]} 7. Nxc6 {[%clk 0:02:59]}  bxc6 {[%clk 0:02:39]} 8. c4 {[%clk 0:03:00]}  Be7 {[%clk 0:02:35]} 9. Nc3 {[%clk 0:02:59]}  Be6 {[%clk 0:02:31]} 10. Bg5 {[%clk 0:02:57]}  e4 {[%clk 0:02:28]} 11. Qa4 {[%clk 0:02:51]}  O-O {[%clk 0:02:26]} 12. Qxc6 {[%clk 0:02:51]}  Rc8 {[%clk 0:02:00]} 13. Qa6 {[%clk 0:02:50]}  Rxc4 {[%clk 0:01:53]} 14. Rfd1 {[%clk 0:02:50]}  Qa8 {[%clk 0:01:29]} 15. Rac1 {[%clk 0:02:35]}  h6 {[%clk 0:01:24]} 16. Bxf6 {[%clk 0:02:21]}  Bxf6 {[%clk 0:01:25]} 17. h4 {[%clk 0:02:01]}  Rfc8 {[%clk 0:01:20]} 18. e3 {[%clk 0:01:49]}  Bxc3 {[%clk 0:01:12]} 19. bxc3 {[%clk 0:01:49]}  Rxc3 {[%clk 0:01:13]} 20. Rxc3 {[%clk 0:01:46]}  Rxc3 {[%clk 0:01:14]} 21. Rb1 {[%clk 0:01:44]}  Rc6 {[%clk 0:01:02]} 22. Qa5 {[%clk 0:01:41]}  a6 {[%clk 0:00:42]} 23. Bf1 {[%clk 0:01:35]}  Qc8 {[%clk 0:00:41]} 24. Kg2 {[%clk 0:01:32]}  Bh3+ {[%clk 0:00:40]} 25. Kg1 {[%clk 0:01:31]}  Rc1 {[%clk 0:00:32]} 26. Rxc1 {[%clk 0:01:11]}  Qxc1 {[%clk 0:00:31]} 27. Qxa6 {[%clk 0:01:12]}  Qa1 {[%clk 0:00:26]} 28. a4 {[%clk 0:00:54]}  Bxf1 {[%clk 0:00:24]} 29. Qxf1 {[%clk 0:00:55]}  Qxa4 {[%clk 0:00:23]} 30. Qc1 {[%clk 0:00:51]}  Qc4 {[%clk 0:00:22]} 31. Qb2 {[%clk 0:00:51]}  Qd3 {[%clk 0:00:19]} 32. Kg2 {[%clk 0:00:50]}  Qd1 {[%clk 0:00:18]} 33. Qe5 {[%clk 0:00:50]}  Qf3+ {[%clk 0:00:18]} 34. Kg1 {[%clk 0:00:49]}  Qd1+ {[%clk 0:00:18]} 35. Kh2 {[%clk 0:00:50]}  Qd2 {[%clk 0:00:15]} 36. Qe8+ {[%clk 0:00:49]}  Kh7 {[%clk 0:00:14]} 37. Qxf7 {[%clk 0:00:49]}  Qd1 {[%clk 0:00:11]} 38. Kg2 {[%clk 0:00:47]}  Qd3 {[%clk 0:00:09]} 39. Qf5+ {[%clk 0:00:47]}  Kg8 {[%clk 0:00:09]} 40. h5 {[%clk 0:00:48]}  Qd2 {[%clk 0:00:08]} 41. Qe6+ {[%clk 0:00:47]}  Kh7 {[%clk 0:00:08]} 42. Qf7 {[%clk 0:00:47]}  Qd3 {[%clk 0:00:07]} 43. g4 {[%clk 0:00:47]}  Qd1 {[%clk 0:00:06]} 44. Qg6+ {[%clk 0:00:44]}  Kg8 {[%clk 0:00:06]} 45. Qe6+ {[%clk 0:00:44]}  Kh7 {[%clk 0:00:06]} 46. Qf5+ {[%clk 0:00:43]}  Kg8 {[%clk 0:00:07]} 47. Kh2 {[%clk 0:00:44]}  Qd2 {[%clk 0:00:06]} 48. Kg3 {[%clk 0:00:41]}  Qd1 {[%clk 0:00:06]} 49. Kf4 {[%clk 0:00:40]}  Qf3+ {[%clk 0:00:05]} 50. Ke5 {[%clk 0:00:41]}  Qxf5+ {[%clk 0:00:03]} 51. Kxf5 {[%clk 0:00:41]}  Kf7 {[%clk 0:00:03]} 52. Ke5 {[%clk 0:00:41]}  Ke7 {[%clk 0:00:03]} 53. Kxd5 {[%clk 0:00:42]}  Kf6 {[%clk 0:00:03]} 54. Kxe4 {[%clk 0:00:42]}  Kg5 {[%clk 0:00:04]} 55. Kf3 {[%clk 0:00:42]}  g6 {[%clk 0:00:04]} 56. hxg6 {[%clk 0:00:42]}  Kxg6 {[%clk 0:00:05]} 57. Kg3 {[%clk 0:00:43]}  Kg5 {[%clk 0:00:06]} 58. f4+ {[%clk 0:00:44]}  Kf6 {[%clk 0:00:06]} 59. Kh4 {[%clk 0:00:44]}  Kg6 {[%clk 0:00:07]} 60. e4 {[%clk 0:00:45]}  Kf6 {[%clk 0:00:07]} 61. e5+ {[%clk 0:00:45]}  Kg6 {[%clk 0:00:08]} 62. f5+ {[%clk 0:00:46]}  Kf7 {[%clk 0:00:09]} 63. e6+ {[%clk 0:00:46]} 1-0


[Site "https://www.chess.com"]

[Event "Titled Tuesday Blitz April 26 Early 2022"]
[White "Noboa Silva, Kevin"]
[Black "Onslow, Alfie"]
[WhiteFideId "3618471"]
[BlackFideId "436976"]
[WhiteElo "2172"]
[BlackElo "1884"]
[Result "1-0"]
[Round "03"]
[TimeControl "180+1"]
[Date "2022.04.26"]
[WhiteClock "0:00:10"]
[BlackClock "0:00:20"]

1. e4 {[%clk 0:03:00]}  c5 {[%clk 0:02:59]} 2. c3 {[%clk 0:03:00]}  Nf6 {[%clk 0:02:59]} 3. e5 {[%clk 0:03:01]}  Nd5 {[%clk 0:03:00]} 4. d4 {[%clk 0:03:01]}  cxd4 {[%clk 0:03:00]} 5. cxd4 {[%clk 0:03:02]}  d6 {[%clk 0:03:00]} 6. Nf3 {[%clk 0:03:03]}  Nc6 {[%clk 0:03:00]} 7. Bc4 {[%clk 0:03:03]}  Nb6 {[%clk 0:03:01]} 8. Bb5 {[%clk 0:03:04]}  Bg4 {[%clk 0:02:46]} 9. d5 {[%clk 0:02:22]}  a6 {[%clk 0:02:46]} 10. dxc6 {[%clk 0:02:03]}  axb5 {[%clk 0:02:45]} 11. cxb7 {[%clk 0:02:03]}  Rb8 {[%clk 0:02:45]} 12. Qe2 {[%clk 0:01:55]}  Nc4 {[%clk 0:02:39]} 13. b3 {[%clk 0:01:46]}  Nxe5 {[%clk 0:02:39]} 14. Qxb5+ {[%clk 0:01:43]}  Qd7 {[%clk 0:02:07]} 15. Qxd7+ {[%clk 0:01:35]}  Nxd7 {[%clk 0:02:07]} 16. Nbd2 {[%clk 0:01:32]}  Rxb7 {[%clk 0:02:06]} 17. O-O {[%clk 0:01:32]}  Nf6 {[%clk 0:01:54]} 18. Bb2 {[%clk 0:01:31]}  e6 {[%clk 0:01:53]} 19. h3 {[%clk 0:01:29]}  Bh5 {[%clk 0:01:46]} 20. Rfc1 {[%clk 0:01:26]}  Kd7 {[%clk 0:01:44]} 21. g4 {[%clk 0:01:18]}  Bg6 {[%clk 0:01:43]} 22. a4 {[%clk 0:01:19]}  Nd5 {[%clk 0:01:39]} 23. a5 {[%clk 0:01:18]}  Ra7 {[%clk 0:01:29]} 24. Bd4 {[%clk 0:01:05]}  Ra6 {[%clk 0:01:26]} 25. Ra4 {[%clk 0:01:04]}  e5 {[%clk 0:01:20]} 26. Bb2 {[%clk 0:00:52]}  Be7 {[%clk 0:01:15]} 27. b4 {[%clk 0:00:47]}  Rb8 {[%clk 0:01:14]} 28. Bc3 {[%clk 0:00:34]}  Rc6 {[%clk 0:01:05]} 29. Bb2 {[%clk 0:00:08]}  Rxc1+ {[%clk 0:01:01]} 30. Bxc1 {[%clk 0:00:09]}  Rxb4 {[%clk 0:01:01]} 31. Ra1 {[%clk 0:00:09]}  Nf4 {[%clk 0:00:29]} 32. a6 {[%clk 0:00:08]}  Rb8 {[%clk 0:00:29]} 33. a7 {[%clk 0:00:08]}  Ra8 {[%clk 0:00:30]} 34. Nc4 {[%clk 0:00:08]}  Ne2+ {[%clk 0:00:30]} 35. Kf1 {[%clk 0:00:08]}  Nxc1 {[%clk 0:00:28]} 36. Nb6+ {[%clk 0:00:09]}  Kc6 {[%clk 0:00:25]} 37. Nxa8 {[%clk 0:00:08]}  Nb3 {[%clk 0:00:25]} 38. Nb6 {[%clk 0:00:08]}  Bd3+ {[%clk 0:00:23]} 39. Kg2 {[%clk 0:00:08]}  Nxa1 {[%clk 0:00:21]} 40. a8=Q+ {[%clk 0:00:08]}  Kxb6 {[%clk 0:00:21]} 41. Qxa1 {[%clk 0:00:09]}  Bb5 {[%clk 0:00:18]} 42. Qb2 {[%clk 0:00:07]}  Kc5 {[%clk 0:00:18]} 43. Qc3+ {[%clk 0:00:07]}  Bc4 {[%clk 0:00:18]} 44. Nd2 {[%clk 0:00:07]}  d5 {[%clk 0:00:18]} 45. Nxc4 {[%clk 0:00:07]}  dxc4 {[%clk 0:00:18]} 46. Qxe5+ {[%clk 0:00:07]}  Kb4 {[%clk 0:00:19]} 47. Qxe7+ {[%clk 0:00:07]}  Kb3 {[%clk 0:00:20]} 48. Qxf7 {[%clk 0:00:08]}  Kb2 {[%clk 0:00:18]} 49. Qxg7+ {[%clk 0:00:08]}  c3 {[%clk 0:00:19]} 50. Qxh7 {[%clk 0:00:08]}  c2 {[%clk 0:00:19]} 51. Qxc2+ {[%clk 0:00:09]}  Kxc2 {[%clk 0:00:20]} 52. g5 {[%clk 0:00:10]} 1-0


[Site "https://www.chess.com"]

[Event "Titled Tuesday Blitz April 26 Early 2022"]
[White "Nozdrachev, Leonid"]
[Black "Ivic, Velimir"]
[WhiteFideId "24113433"]
[BlackFideId "950122"]
[WhiteElo "2242"]
[BlackElo "2610"]
[Result "0-1"]
[Round "03"]
[TimeControl "180+1"]
[Date "2022.04.26"]
[WhiteClock "0:00:02"]
[BlackClock "0:00:11"]

1. e4 {[%clk 0:02:59]}  c5 {[%clk 0:03:00]} 2. c3 {[%clk 0:02:58]}  Nf6 {[%clk 0:02:59]} 3. e5 {[%clk 0:02:57]}  Nd5 {[%clk 0:03:00]} 4. d4 {[%clk 0:02:56]}  cxd4 {[%clk 0:03:01]} 5. Nf3 {[%clk 0:02:55]}  e6 {[%clk 0:03:01]} 6. cxd4 {[%clk 0:02:53]}  d6 {[%clk 0:03:02]} 7. Bd3 {[%clk 0:02:52]}  Be7 {[%clk 0:03:02]} 8. a3 {[%clk 0:02:49]}  O-O {[%clk 0:03:01]} 9. O-O {[%clk 0:02:48]}  Bd7 {[%clk 0:02:51]} 10. Qc2 {[%clk 0:02:40]}  h6 {[%clk 0:02:48]} 11. Qe2 {[%clk 0:02:28]}  Bc6 {[%clk 0:02:43]} 12. Qe4 {[%clk 0:02:27]}  Nf6 {[%clk 0:02:36]} 13. Qe2 {[%clk 0:02:27]}  Nd5 {[%clk 0:02:35]} 14. Qe4 {[%clk 0:02:26]}  Nf6 {[%clk 0:02:35]} 15. Qe2 {[%clk 0:02:26]}  Nfd7 {[%clk 0:02:11]} 16. Nc3 {[%clk 0:02:14]}  Bxf3 {[%clk 0:01:57]} 17. Qxf3 {[%clk 0:02:14]}  Nc6 {[%clk 0:01:58]} 18. Qe4 {[%clk 0:02:08]}  f5 {[%clk 0:01:55]} 19. exf6 {[%clk 0:02:08]}  Rxf6 {[%clk 0:01:51]} 20. d5 {[%clk 0:01:55]}  Nce5 {[%clk 0:01:32]} 21. dxe6 {[%clk 0:01:49]}  Nf8 {[%clk 0:01:32]} 22. Bb1 {[%clk 0:01:35]}  Rc8 {[%clk 0:00:41]} 23. f4 {[%clk 0:01:13]}  Ng4 {[%clk 0:00:31]} 24. Nd5 {[%clk 0:01:00]}  Rxe6 {[%clk 0:00:28]} 25. Qf3 {[%clk 0:00:52]}  Nf6 {[%clk 0:00:21]} 26. Ba2 {[%clk 0:00:51]}  Kh8 {[%clk 0:00:19]} 27. Be3 {[%clk 0:00:45]}  Rc2 {[%clk 0:00:16]} 28. Bd4 {[%clk 0:00:43]}  Ree2 {[%clk 0:00:15]} 29. Ne3 {[%clk 0:00:35]}  Rcd2 {[%clk 0:00:12]} 30. Bc3 {[%clk 0:00:34]}  d5 {[%clk 0:00:05]} 31. Nf5 {[%clk 0:00:31]}  Bc5+ {[%clk 0:00:05]} 32. Kh1 {[%clk 0:00:30]}  Rxg2 {[%clk 0:00:03]} 33. Bxd2 {[%clk 0:00:29]}  Rxd2 {[%clk 0:00:04]} 34. b4 {[%clk 0:00:23]}  Bb6 {[%clk 0:00:04]} 35. Bb3 {[%clk 0:00:21]}  Ne4 {[%clk 0:00:05]} 36. Rae1 {[%clk 0:00:13]}  Nf2+ {[%clk 0:00:04]} 37. Rxf2 {[%clk 0:00:13]}  Rxf2 {[%clk 0:00:05]} 38. Qg3 {[%clk 0:00:12]}  Qf6 {[%clk 0:00:06]} 39. Ne3 {[%clk 0:00:03]}  Bxe3 {[%clk 0:00:05]} 40. Rxe3 {[%clk 0:00:02]}  Rf1+ {[%clk 0:00:04]} 41. Kg2 {[%clk 0:00:02]}  Rxf4 {[%clk 0:00:04]} 42. Rf3 {[%clk 0:00:02]}  Rxf3 {[%clk 0:00:04]} 43. Qxf3 {[%clk 0:00:03]}  Qxf3+ {[%clk 0:00:05]} 44. Kxf3 {[%clk 0:00:04]}  d4 {[%clk 0:00:03]} 45. Ke4 {[%clk 0:00:04]}  g5 {[%clk 0:00:03]} 46. Kxd4 {[%clk 0:00:04]}  Kg7 {[%clk 0:00:04]} 47. Bd5 {[%clk 0:00:04]}  b6 {[%clk 0:00:04]} 48. Ke5 {[%clk 0:00:04]}  Nd7+ {[%clk 0:00:04]} 49. Kd6 {[%clk 0:00:04]}  Nf6 {[%clk 0:00:05]} 50. Bh1 {[%clk 0:00:04]}  Ng4 {[%clk 0:00:05]} 51. h3 {[%clk 0:00:04]}  Nf2 {[%clk 0:00:06]} 52. Bg2 {[%clk 0:00:04]}  Kf6 {[%clk 0:00:06]} 53. Kc6 {[%clk 0:00:05]}  Ke5 {[%clk 0:00:04]} 54. Kb7 {[%clk 0:00:05]}  Kd6 {[%clk 0:00:04]} 55. Kxa7 {[%clk 0:00:05]}  Kc7 {[%clk 0:00:05]} 56. a4 {[%clk 0:00:05]}  Nd3 {[%clk 0:00:06]} 57. b5 {[%clk 0:00:04]}  Nc5 {[%clk 0:00:04]} 58. a5 {[%clk 0:00:04]}  bxa5 {[%clk 0:00:05]} 59. b6+ {[%clk 0:00:04]}  Kd6 {[%clk 0:00:05]} 60. b7 {[%clk 0:00:04]}  Nd7 {[%clk 0:00:04]} 61. b8=Q+ {[%clk 0:00:01]}  Nxb8 {[%clk 0:00:05]} 62. Kxb8 {[%clk 0:00:02]}  a4 {[%clk 0:00:05]} 63. Be4 {[%clk 0:00:02]}  a3 {[%clk 0:00:05]} 64. Bb1 {[%clk 0:00:02]}  h5 {[%clk 0:00:05]} 65. Kb7 {[%clk 0:00:02]}  g4 {[%clk 0:00:06]} 66. hxg4 {[%clk 0:00:02]}  hxg4 {[%clk 0:00:07]} 67. Kb6 {[%clk 0:00:02]}  g3 {[%clk 0:00:07]} 68. Be4 {[%clk 0:00:02]}  a2 {[%clk 0:00:07]} 69. Kb5 {[%clk 0:00:02]}  a1=Q {[%clk 0:00:08]} 70. Kc4 {[%clk 0:00:02]}  Qe5 {[%clk 0:00:09]} 71. Bd3 {[%clk 0:00:02]}  g2 {[%clk 0:00:09]} 72. Kb3 {[%clk 0:00:03]}  g1=Q {[%clk 0:00:10]} 73. Be4 {[%clk 0:00:03]}  Qb6+ {[%clk 0:00:11]} 74. Kc4 {[%clk 0:00:02]}  Qed4# {[%clk 0:00:11]} 0-1


[Site "https://www.chess.com"]

[Event "Titled Tuesday Blitz April 26 Early 2022"]
[White "Odegov, Artem"]
[Black "Chincholimath, Halsagar"]
[WhiteFideId "34183644"]
[BlackFideId "5022487"]
[WhiteElo "2286"]
[BlackElo "1737"]
[Result "1-0"]
[Round "03"]
[TimeControl "180+1"]
[Date "2022.04.26"]
[WhiteClock "0:00:13"]
[BlackClock "0:00:18"]

1. d4 {[%clk 0:03:00]}  d5 {[%clk 0:02:55]} 2. c4 {[%clk 0:03:00]}  c6 {[%clk 0:02:54]} 3. Nf3 {[%clk 0:03:00]}  Nf6 {[%clk 0:02:51]} 4. Nc3 {[%clk 0:03:00]}  dxc4 {[%clk 0:02:51]} 5. a4 {[%clk 0:03:00]}  Bf5 {[%clk 0:02:50]} 6. Ne5 {[%clk 0:03:00]}  Nbd7 {[%clk 0:02:47]} 7. Nxc4 {[%clk 0:03:00]}  Nb6 {[%clk 0:02:45]} 8. Ne5 {[%clk 0:02:59]}  Nfd7 {[%clk 0:02:41]} 9. Nf3 {[%clk 0:02:51]}  a5 {[%clk 0:02:23]} 10. e4 {[%clk 0:02:49]}  Bg6 {[%clk 0:02:19]} 11. Bf4 {[%clk 0:02:49]}  e6 {[%clk 0:02:16]} 12. h4 {[%clk 0:02:49]}  Bb4 {[%clk 0:02:13]} 13. Bd3 {[%clk 0:02:48]}  Bh5 {[%clk 0:02:09]} 14. Qc2 {[%clk 0:02:29]}  Nf6 {[%clk 0:01:57]} 15. O-O-O {[%clk 0:02:26]}  Qe7 {[%clk 0:01:25]} 16. Rd2 {[%clk 0:02:12]}  Bxf3 {[%clk 0:01:24]} 17. gxf3 {[%clk 0:02:11]}  Bxc3 {[%clk 0:01:24]} 18. Qxc3 {[%clk 0:02:07]}  Nxa4 {[%clk 0:01:21]} 19. Qb3 {[%clk 0:02:07]}  Qb4 {[%clk 0:01:17]} 20. Qxb4 {[%clk 0:01:53]}  axb4 {[%clk 0:01:16]} 21. Rg1 {[%clk 0:01:49]}  Rg8 {[%clk 0:01:11]} 22. Bg5 {[%clk 0:01:37]}  Nd7 {[%clk 0:01:06]} 23. h5 {[%clk 0:01:26]}  h6 {[%clk 0:01:03]} 24. Be3 {[%clk 0:01:25]}  Ke7 {[%clk 0:01:02]} 25. f4 {[%clk 0:01:24]}  Ra5 {[%clk 0:01:01]} 26. f5 {[%clk 0:01:24]}  c5 {[%clk 0:00:52]} 27. fxe6 {[%clk 0:01:07]}  fxe6 {[%clk 0:00:48]} 28. d5 {[%clk 0:00:49]}  Ne5 {[%clk 0:00:38]} 29. Be2 {[%clk 0:00:48]}  c4 {[%clk 0:00:34]} 30. Rd4 {[%clk 0:00:22]}  Nd3+ {[%clk 0:00:33]} 31. Bxd3 {[%clk 0:00:20]}  cxd3 {[%clk 0:00:33]} 32. Rxb4 {[%clk 0:00:18]}  Rc8+ {[%clk 0:00:31]} 33. Kd2 {[%clk 0:00:17]}  Nc5 {[%clk 0:00:24]} 34. Rxg7+ {[%clk 0:00:15]}  Kf6 {[%clk 0:00:23]} 35. Rg6+ {[%clk 0:00:12]}  Kf7 {[%clk 0:00:22]} 36. Bxc5 {[%clk 0:00:10]}  Raxc5 {[%clk 0:00:21]} 37. Rxb7+ {[%clk 0:00:11]}  R8c7 {[%clk 0:00:17]} 38. Rxc7+ {[%clk 0:00:10]}  Rxc7 {[%clk 0:00:18]} 39. dxe6+ {[%clk 0:00:11]}  Ke7 {[%clk 0:00:18]} 40. Rg7+ {[%clk 0:00:12]}  Kd6 {[%clk 0:00:17]} 41. Rxc7 {[%clk 0:00:13]}  Kxc7 {[%clk 0:00:18]} 42. f4 {[%clk 0:00:13]} 1-0


[Site "https://www.chess.com"]

[Event "Titled Tuesday Blitz April 26 Early 2022"]
[White "Okike, David"]
[Black "Dixit, Nikhil"]
[WhiteFideId "8500134"]
[BlackFideId "5059534"]
[WhiteElo "2232"]
[BlackElo "2223"]
[Result "1/2-1/2"]
[Round "03"]
[TimeControl "180+1"]
[Date "2022.04.26"]
[WhiteClock "0:01:20"]
[BlackClock "0:00:38"]

1. e4 {[%clk 0:03:00]}  e6 {[%clk 0:02:58]} 2. d4 {[%clk 0:03:00]}  d5 {[%clk 0:02:58]} 3. Nc3 {[%clk 0:02:58]}  dxe4 {[%clk 0:02:58]} 4. Nxe4 {[%clk 0:02:57]}  Bd7 {[%clk 0:02:59]} 5. Nf3 {[%clk 0:02:57]}  Bc6 {[%clk 0:03:00]} 6. Bd3 {[%clk 0:02:57]}  Nd7 {[%clk 0:03:00]} 7. O-O {[%clk 0:02:56]}  Ngf6 {[%clk 0:03:00]} 8. Nxf6+ {[%clk 0:02:55]}  Qxf6 {[%clk 0:03:01]} 9. c3 {[%clk 0:02:51]}  Bxf3 {[%clk 0:03:00]} 10. gxf3 {[%clk 0:02:49]}  Bd6 {[%clk 0:02:56]} 11. Kg2 {[%clk 0:02:33]}  Qh4 {[%clk 0:02:43]} 12. Rh1 {[%clk 0:02:32]}  Nf6 {[%clk 0:02:43]} 13. Qd2 {[%clk 0:02:27]}  Nd5 {[%clk 0:02:36]} 14. Qg5 {[%clk 0:02:24]}  Qxg5+ {[%clk 0:02:20]} 15. Bxg5 {[%clk 0:02:23]}  Bf4 {[%clk 0:02:21]} 16. Bh4 {[%clk 0:02:22]}  Bd6 {[%clk 0:02:12]} 17. Bg3 {[%clk 0:02:22]}  Nf4+ {[%clk 0:02:12]} 18. Bxf4 {[%clk 0:02:22]}  Bxf4 {[%clk 0:02:13]} 19. Rhe1 {[%clk 0:02:20]}  c6 {[%clk 0:02:12]} 20. Re4 {[%clk 0:02:20]}  Bd6 {[%clk 0:02:11]} 21. Rae1 {[%clk 0:02:15]}  O-O-O {[%clk 0:02:09]} 22. Rg4 {[%clk 0:02:13]}  g6 {[%clk 0:02:08]} 23. Rh4 {[%clk 0:02:13]}  h5 {[%clk 0:02:08]} 24. Rhe4 {[%clk 0:02:12]}  Kc7 {[%clk 0:02:08]} 25. Bc4 {[%clk 0:02:07]}  g5 {[%clk 0:02:06]} 26. h3 {[%clk 0:02:06]}  h4 {[%clk 0:02:05]} 27. R4e2 {[%clk 0:02:03]}  Bf4 {[%clk 0:02:05]} 28. Re4 {[%clk 0:02:02]}  Rd6 {[%clk 0:02:04]} 29. R4e2 {[%clk 0:02:02]}  Rhd8 {[%clk 0:02:04]} 30. Re4 {[%clk 0:02:02]}  b6 {[%clk 0:02:04]} 31. R4e2 {[%clk 0:02:02]}  c5 {[%clk 0:02:04]} 32. dxc5 {[%clk 0:02:02]}  bxc5 {[%clk 0:02:05]} 33. Kf1 {[%clk 0:01:54]}  Rd2 {[%clk 0:01:58]} 34. Rxd2 {[%clk 0:01:54]}  Rxd2 {[%clk 0:01:58]} 35. Re2 {[%clk 0:01:54]}  Rd1+ {[%clk 0:01:57]} 36. Re1 {[%clk 0:01:55]}  Rd2 {[%clk 0:01:54]} 37. Re2 {[%clk 0:01:54]}  Rd6 {[%clk 0:01:54]} 38. Ke1 {[%clk 0:01:51]}  Kd7 {[%clk 0:01:53]} 39. Rc2 {[%clk 0:01:51]}  Ke7 {[%clk 0:01:52]} 40. Ke2 {[%clk 0:01:51]}  f5 {[%clk 0:01:46]} 41. Ke1 {[%clk 0:01:51]}  Kf6 {[%clk 0:01:47]} 42. Be2 {[%clk 0:01:50]}  a5 {[%clk 0:01:41]} 43. b3 {[%clk 0:01:50]}  e5 {[%clk 0:01:37]} 44. Bd1 {[%clk 0:01:47]}  e4 {[%clk 0:01:32]} 45. fxe4 {[%clk 0:01:46]}  fxe4 {[%clk 0:01:32]} 46. Bg4 {[%clk 0:01:46]}  Ke5 {[%clk 0:01:32]} 47. Ke2 {[%clk 0:01:46]}  Rd8 {[%clk 0:01:26]} 48. Ke1 {[%clk 0:01:44]}  Kd5 {[%clk 0:01:20]} 49. Re2 {[%clk 0:01:38]}  Re8 {[%clk 0:01:18]} 50. Bf5 {[%clk 0:01:37]}  Re5 {[%clk 0:01:16]} 51. Bg4 {[%clk 0:01:36]}  c4 {[%clk 0:01:15]} 52. Kd1 {[%clk 0:01:36]}  Kc5 {[%clk 0:00:59]} 53. Kc2 {[%clk 0:01:36]}  Rd5 {[%clk 0:00:57]} 54. Be6 {[%clk 0:01:35]}  cxb3+ {[%clk 0:00:56]} 55. axb3 {[%clk 0:01:36]}  Rd3 {[%clk 0:00:54]} 56. Bf5 {[%clk 0:01:35]}  Rf3 {[%clk 0:00:53]} 57. Bg4 {[%clk 0:01:26]}  Rd3 {[%clk 0:00:49]} 58. Bf5 {[%clk 0:01:23]}  Be5 {[%clk 0:00:48]} 59. Rxe4 {[%clk 0:01:19]}  Rxc3+ {[%clk 0:00:48]} 60. Kd2 {[%clk 0:01:18]}  Bd4 {[%clk 0:00:48]} 61. Rg4 {[%clk 0:01:15]}  Rxb3 {[%clk 0:00:42]} 62. Bd3 {[%clk 0:01:15]}  Rb2+ {[%clk 0:00:40]} 63. Bc2 {[%clk 0:01:15]}  Bf6 {[%clk 0:00:37]} 64. Kc1 {[%clk 0:01:11]}  Rb4 {[%clk 0:00:36]} 65. Bd1 {[%clk 0:01:10]}  Rxg4 {[%clk 0:00:24]} 66. Bxg4 {[%clk 0:01:08]}  Kb4 {[%clk 0:00:24]} 67. Kb1 {[%clk 0:01:08]}  a4 {[%clk 0:00:25]} 68. Ka2 {[%clk 0:01:08]}  Bd4 {[%clk 0:00:24]} 69. f3 {[%clk 0:01:08]}  Bc5 {[%clk 0:00:24]} 70. Bh5 {[%clk 0:01:07]}  a3 {[%clk 0:00:24]} 71. Bg4 {[%clk 0:01:07]}  Ka5 {[%clk 0:00:25]} 72. Kb3 {[%clk 0:01:07]}  Kb6 {[%clk 0:00:25]} 73. Be6 {[%clk 0:01:05]}  Kc7 {[%clk 0:00:25]} 74. Bg4 {[%clk 0:01:04]}  Kd6 {[%clk 0:00:25]} 75. Bh5 {[%clk 0:01:04]}  Ke5 {[%clk 0:00:26]} 76. Bg4 {[%clk 0:01:04]}  Kf4 {[%clk 0:00:26]} 77. Bh5 {[%clk 0:01:05]}  Ke3 {[%clk 0:00:27]} 78. Bg4 {[%clk 0:01:06]}  Kf2 {[%clk 0:00:28]} 79. Bh5 {[%clk 0:01:06]}  Kf1 {[%clk 0:00:28]} 80. Bg4 {[%clk 0:01:07]}  Kg2 {[%clk 0:00:28]} 81. Ka2 {[%clk 0:01:06]}  Kf2 {[%clk 0:00:29]} 82. Kb3 {[%clk 0:01:07]}  Ke1 {[%clk 0:00:29]} 83. Ka2 {[%clk 0:01:08]}  Kd2 {[%clk 0:00:29]} 84. Kb3 {[%clk 0:01:09]}  Ke3 {[%clk 0:00:29]} 85. Ka2 {[%clk 0:01:10]}  Kd4 {[%clk 0:00:30]} 86. Bh5 {[%clk 0:01:11]}  Ke5 {[%clk 0:00:30]} 87. Bg4 {[%clk 0:01:12]}  Kf4 {[%clk 0:00:31]} 88. Bh5 {[%clk 0:01:12]}  Bf2 {[%clk 0:00:31]} 89. Bg4 {[%clk 0:01:13]}  Bg3 {[%clk 0:00:32]} 90. Bh5 {[%clk 0:01:14]}  Bf2 {[%clk 0:00:32]} 91. Bg4 {[%clk 0:01:15]}  Bg3 {[%clk 0:00:33]} 92. Kxa3 {[%clk 0:01:16]}  Ke5 {[%clk 0:00:34]} 93. Kb3 {[%clk 0:01:17]}  Bf4 {[%clk 0:00:35]} 94. Kc4 {[%clk 0:01:17]}  Bg3 {[%clk 0:00:35]} 95. Kd3 {[%clk 0:01:18]}  Bf4 {[%clk 0:00:36]} 96. Kc4 {[%clk 0:01:18]}  Bg3 {[%clk 0:00:37]} 97. Kd3 {[%clk 0:01:19]}  Bf4 {[%clk 0:00:38]} 98. Kc4 {[%clk 0:01:20]} 1/2-1/2


[Site "https://www.chess.com"]